[Event "Almaty Open 2019"]
[Site "Almaty"]
[Date "2019.10.10"]
[Round "5.17"]
[White "Kembayev, Bakhytzhan"]
[Black "Baimurzin, Aitkazy"]
[Result "1-0"]
[ECO "A43"]
[WhiteElo "2119"]
[BlackElo "2036"]
[Annotator "ChessBase"]
[PlyCount "92"]
[EventDate "2019.10.07"]
[EventType "swiss"]
[EventCountry "KAZ"]
[SourceTitle "playchess.com"]
[Source "ChessBase"]
[SourceQuality "1"]
[TimeControl "5400+30"]

1. d4 {[%emt 0:00:00]} c5 {[%emt 0:00:00]} 2. d5 {[%emt 0:02:03]} e6 {[%emt 0:00:14]} 3. e4 {[%emt 0:00:28]} a6 {[%emt 0:02:17]} 4. c4 {[%emt 0:02:03]} exd5 {[%emt 0:01:44]} 5. exd5 {[%emt 0:03:33]} g6 {[%emt 0:01:46]} 6. Nf3 {[%emt 0:03:30]} Bg7 {[%emt 0:02:30]} 7. Nc3 {[%emt 0:01:48]} d6 {[%emt 0:00:50]} 8. Bf4 {[%emt 0:02:04]} Ne7 {[%emt 0:01:59]} 9. Qa4+ {[%emt 0:05:32]} Bd7 {[%emt 0:04:15]} 10. Qb3 {[%emt 0:00:43]} O-O {[%emt 0:14:22]} 11. Bd3 {[%emt 0:18:57]} Bf5 {[%emt 0:05:37]} 12. Bxf5 {[%emt 0:00:48]} Nxf5 {[%emt 0:00:23]} 13. O-O {[%emt 0:00:05]} Nd7 {[%emt 0:01:00]} 14. Ne4 {[%emt 0:02:29]} Nf6 {[%emt 0:13:32]} 15. Bg5 {[%emt 0:01:56]} h6 {[%emt 0:09:07]} 16. Bxf6 {[%emt 0:00:06]} Bxf6 {[%emt 0:00:11]} 17. Qxb7 {[%emt 0:00:16]} Bg7 {[%emt 0:01:14]} 18. Rab1 {[%emt 0:04:21]} Qa5 {[%emt 0:06:31]} 19. Qb3 {[%emt 0:10:58]} Rfb8 {[%emt 0:06:42]} 20. Qa3 {[%emt 0:00:22]} Qd8 {[%emt 0:06:29]} 21. b4 {[%emt 0:01:56]} cxb4 {[%emt 0:05:34]} 22. Rxb4 {[%emt 0:00:17]} Rxb4 {[%emt 0:00:32]} 23. Qxb4 {[%emt 0:00:02]} a5 {[%emt 0:00:27]} 24. Qa3 {[%emt 0:02:45]} Rb8 {[%emt 0:03:18]} 25. g4 {[%emt 0:03:00]} Bb2 {[%emt 0:05:02]} 26. Qd3 {[%emt 0:00:23]} Ng7 {[%emt 0:00:37]} 27. Rb1 {[%emt 0:02:22]} f5 {[%emt 0:01:52]} 28. gxf5 {[%emt 0:00:08]} Nxf5 {[%emt 0:00:30]} 29. Ng3 {[%emt 0:00:24]} Qf6 {[%emt 0:00:46]} 30. Nxf5 {[%emt 0:02:22]} gxf5 {[%emt 0:00:57]} 31. Nd4 {[%emt 0:02:39]} Kh8 {[%emt 0:01:38]} 32. Kf1 {[%emt 0:01:35]} f4 {[%emt 0:01:11]} 33. Qe4 {[%emt 0:09:13]} f3 {[%emt 0:02:00]} 34. Nxf3 {[%emt 0:00:23]} Rf8 {[%emt 0:00:12]} 35. Qe2 {[%emt 0:00:58]} Ba3 {[%emt 0:00:31]} 36. Rb3 {[%emt 0:06:19]} Bc5 {[%emt 0:00:08]} 37. Qd1 {[%emt 0:08:44]} a4 {[%emt 0:00:24]} 38. Rd3 {[%emt 0:00:07]} a3 {[%emt 0:00:48]} 39. Qc1 {[%emt 0:00:09]} Rb8 {[%emt 0:00:35]} 40. Qe1 {[%emt 0:02:13]} Qg7 {[%emt 0:01:18]} 41. Nd2 {[%emt 0:00:24]} Rf8 {[%emt 0:00:36]} 42. Ne4 {[%emt 0:00:15]} Rc8 {[%emt 0:00:44]} 43. Nxc5 {[%emt 0:00:24]} Rxc5 {[%emt 0:00:03]} 44. Rg3 {[%emt 0:00:42]} Qf7 {[%emt 0:00:14]} 45. Qe3 {[%emt 0:00:33]} Qf8 {[%emt 0:00:38]} 46. Rf3 {[%emt 0:00:33]} Qg7 1-0

[Event "Almaty Open 2019"]
[Site "Almaty"]
[Date "2019.10.10"]
[Round "5.18"]
[White "Zhakshylykov, Erzhan"]
[Black "Nurgaliyev, Sauat"]
[Result "1/2-1/2"]
[ECO "B17"]
[WhiteElo "1999"]
[BlackElo "1995"]
[Annotator "NA"]
[PlyCount "112"]
[EventDate "2019.10.07"]
[EventType "swiss"]
[EventCountry "KAZ"]
[SourceTitle "playchess.com"]
[Source "ChessBase"]
[SourceQuality "1"]
[TimeControl "5400+30"]

1. e4 {[%emt 0:00:00]} c6 {[%emt 0:00:00]} 2. d4 {[%emt 0:00:15]} d5 {[%emt 0:00:25]} 3. Nc3 {[%emt 0:00:25]} dxe4 {[%emt 0:02:36]} 4. Nxe4 {[%emt 0:00:10]} Nd7 {[%emt 0:00:30]} 5. Bc4 {[%emt 0:02:48]} Ngf6 {[%emt 0:02:11]} 6. Ng5 {[%emt 0:03:34]} e6 {[%emt 0:01:18]} 7. Qe2 {[%emt 0:02:13]} Nb6 {[%emt 0:01:39]} 8. Bb3 {[%emt 0:00:20]} Be7 {[%emt 0:02:34]} 9. N1f3 {[%emt 0:01:43]} O-O {[%emt 0:02:08]} 10. O-O {[%emt 0:00:50]} h6 {[%emt 0:00:47]} 11. Nh3 {[%emt 0:03:25]} Qc7 {[%emt 0:06:01]} 12. c3 {[%emt 0:04:33]} Bd6 {[%emt 0:02:05]} 13. Bc2 {[%emt 0:07:37]} Nbd7 {[%emt 0:03:52]} 14. Re1 {[%emt 0:07:04]} c5 {[%emt 0:03:03]} 15. Ne5 {[%emt 0:04:17]} cxd4 {[%emt 0:04:20]} 16. cxd4 {[%emt 0:00:08]} b6 {[%emt 0:08:43]} 17. Bf4 {[%emt 0:09:10]} Bb7 {[%emt 0:05:38]} 18. Rac1 {[%emt 0:05:52]} Qb8 {[%emt 0:14:51]} 19. Ba4 {[%emt 0:04:30]} b5 {[%emt 0:01:44]} 20. Bxb5 {[%emt 0:03:08]} Nb6 {[%emt 0:01:55]} 21. Bg3 {[%emt 0:04:49]} a6 {[%emt 0:01:23]} 22. Nc6 {[%emt 0:04:56]} Bxc6 {[%emt 0:01:34]} 23. Bxc6 {[%emt 0:00:19]} Ra7 {[%emt 0:00:15]} 24. Be5 {[%emt 0:01:18]} Qd8 {[%emt 0:04:34]} 25. Red1 {[%emt 0:02:57]} Nbd5 {[%emt 0:02:37]} 26. Qf3 {[%emt 0:05:50]} Qb8 {[%emt 0:01:16]} 27. Qg3 {[%emt 0:03:44]} Rd8 {[%emt 0:10:25]} 28. Bxd5 {[%emt 0:06:29]} Bxe5 {[%emt 0:02:00]} 29. Qxe5 {[%emt 0:03:44]} Nxd5 {[%emt 0:00:23]} 30. Qxb8 {[%emt 0:00:35]} Rxb8 {[%emt 0:00:02]} 31. Rd2 {[%emt 0:00:30]} Rb4 {[%emt 0:00:25]} 32. Rc5 {[%emt 0:03:00]} a5 {[%emt 0:01:16]} 33. f3 {[%emt 0:02:15]} a4 {[%emt 0:00:21]} 34. a3 {[%emt 0:00:53]} Rb3 {[%emt 0:00:31]} 35. Nf2 {[%emt 0:00:11]} Kf8 {[%emt 0:01:16]} 36. Nd3 {[%emt 0:01:32]} Ke7 {[%emt 0:01:41]} 37. Ne5 {[%emt 0:01:54]} Rab7 {[%emt 0:00:44]} 38. Nc4 {[%emt 0:00:27]} Kf6 {[%emt 0:06:56]} 39. Ra5 {[%emt 0:00:55]} Nb6 {[%emt 0:00:48]} 40. Nxb6 {[%emt 0:01:07]} R7xb6 {[%emt 0:00:09]} 41. Rxa4 {[%emt 0:00:06]} Rxb2 {[%emt 0:00:18]} 42. Rxb2 {[%emt 0:00:53]} Rxb2 {[%emt 0:00:09]} 43. Rb4 {[%emt 0:00:19]} Ra2 {[%emt 0:00:19]} 44. a4 {[%emt 0:00:07]} Kg6 {[%emt 0:00:35]} 45. h3 {[%emt 0:00:07]} h5 {[%emt 0:00:23]} 46. Kh2 {[%emt 0:00:04]} h4 {[%emt 0:00:57]} 47. Kg1 {[%emt 0:00:25]} Kf6 {[%emt 0:00:15]} 48. Rc4 {[%emt 0:00:20]} Kg6 {[%emt 0:01:14]} 49. Kh2 {[%emt 0:00:48]} Kf6 {[%emt 0:00:06]} 50. Rb4 {[%emt 0:00:04]} Kg6 {[%emt 0:00:06]} 51. Kg1 {[%emt 0:01:12]} Kf6 {[%emt 0:00:17]} 52. Kh2 {[%emt 0:00:06]} Kg6 {[%emt 0:00:05]} 53. Rc4 {[%emt 0:00:07]} Kf6 {[%emt 0:00:05]} 54. Kh1 {[%emt 0:00:06]} Kg6 {[%emt 0:00:05]} 55. Rb4 {[%emt 0:01:00]} Kf6 {[%emt 0:00:04]} 56. Kh2 {[%emt 0:00:07]} Kg6 {[%emt 0:00:05]} 1/2-1/2